bitfinex/quotes_ETHUSD_20220202
["timestamp","ask_amount","ask_price","bid_price","bid_amount"]
[1643815843581,0.19277834,2678.3,2677.7,0.00096]
[1643815843780,0.19277834,2678.3,2677.4,0.18746]
[1643815843979,0.19277834,2678.3,2678.1,0.00493635]
[1643815844179,0.03863461,2678.4,2678.1,0.00493635]
[1643815844379,0.00510927,2678.4,2678.1,0.00493635]
[1643815844779,2.98713,2679.0,2677.7,0.18637]
[1643815844780,3.02372839,2679.0,2677.8,0.434]
[1643815844982,3.02372839,2679.0,2677.8,0.6207]
[1643815844983,2.83722839,2679.0,2677.8,0.6207]
[1643815845180,0.00362849,2678.4,2678.3,0.94613322]
[1643815845581,0.00362849,2678.4,2678.3,1.31900322]
[1643815845780,0.00362849,2678.4,2678.3,7.96900321]
[1643815845980,2.849e-05,2678.4,2678.3,7.45686999]
[1643815846183,2.849e-05,2678.4,2678.3,8.45686999]
[1643815846184,7.227e-05,2678.4,2678.3,8.45686999]
[1643815846382,0.1865,2680.1,2678.4,5.65]
[1643815846585,0.94728428,2680.3,2679.1,0.99999999]
[1643815846782,0.01450428,2680.3,2679.4,0.9326695]
[1643815847050,0.01450428,2680.3,2679.6,0.21321382]
[1643815847252,0.1865,2681.1,2680.1,0.99999999]
[1643815847449,0.1865,2681.3,2680.2,0.62037]
[1643815847656,1.87737944,2681.4,2680.3,0.1865]
[1643815847850,0.84458412,2680.1,2679.6,3.26458662]
[1643815848049,0.84458412,2680.1,2679.7,0.6205]
[1643815848247,0.84458412,2680.1,2680.0,0.91084926]
[1643815848648,0.84458412,2680.1,2679.7,0.1865]
[1643815848848,0.84458412,2680.1,2679.6,0.21321382]
[1643815849547,0.84458412,2680.1,2679.8,0.87199012]
[1643815849947,0.00488803,2680.0,2679.8,0.87199012]
[1643815850785,0.84458412,2680.1,2679.8,0.87199012]
[1643815851199,0.01954882,2680.5,2680.0,6.64999999]
[1643815851388,0.01954882,2680.5,2680.2,0.01231027]
[1643815851586,9.2742,2682.3,2680.5,5.65]
[1643815851587,0.1865,2681.7,2680.5,5.65]
[1643815851786,1.1071,2681.7,2680.8,0.01231449]
[1643815852089,1.1071,2681.7,2681.6,1.01034637]
[1643815852485,1.1071,2681.7,2681.6,1.98034637]
[1643815852686,1.1071,2681.7,2681.6,1.56339863]
[1643815852687,1.0571,2681.7,2681.6,1.56339863]
[1643815852893,1.0571,2681.7,2681.1,0.1864]
[1643815853091,1.0571,2681.7,2680.7,0.1864]
[1643815853092,1.8648,2681.6,2680.7,0.1864]
[1643815853291,1.89699119,2681.6,2680.4,0.1864]
[1643815853488,1.89699119,2681.6,2679.9,6.4207]
[1643815853489,0.19897173,2681.5,2680.1,1.0]
[1643815853689,7.47,2681.3,2681.0,0.67741478]
[1643815853889,7.47,2681.3,2680.5,0.434]
[1643815854288,7.47,2681.3,2680.5,0.92037]
[1643815854534,7.47,2681.3,2680.5,1.85264]
[1643815854734,0.00360564,2681.0,2680.5,1.85264]
[1643815855042,0.00360564,2681.0,2680.7,0.22290507]
[1643815855235,0.00360564,2681.0,2680.8,0.434]
[1643815855441,0.00243666,2681.0,2680.8,0.434]
[1643815855636,0.20092038,2681.4,2679.9,1.0]
[1643815855838,0.67823298,2681.0,2680.0,0.85778035]
[1643815856039,0.1865,2680.9,2680.0,0.85778035]
[1643815856238,0.1865,2680.9,2679.6,0.335552]
[1643815856437,1.14989258,2680.6,2680.1,0.21507725]
[1643815856636,0.4865,2680.5,2679.6,0.149052]
[1643815856837,0.1865,2680.5,2679.6,0.149052]
[1643815857037,0.1865,2680.7,2679.9,0.01246284]
[1643815857237,0.1865,2680.9,2680.2,0.00150359]
[1643815857438,0.93272,2680.7,2680.2,0.00150359]
[1643815857636,0.1865,2680.6,2680.3,0.17746398]
[1643815857836,0.93268,2680.7,2680.4,0.78868874]
[1643815858040,0.1865,2680.9,2680.4,0.78868874]
[1643815858883,0.1865,2680.9,2680.3,0.00150353]
[1643815859089,2.05199,2680.9,2680.3,0.00150353]
[1643815859284,1.60960742,2680.8,2680.3,0.00150353]
[1643815859483,1.60960742,2680.8,2679.6,0.149052]
[1643815859484,1.76726619,2680.7,2679.6,0.149052]
[1643815859684,0.4865,2680.7,2680.4,0.00501157]
[1643815859987,0.1865,2680.7,2680.4,0.00501157]
[1643815860587,0.1865,2680.7,2679.7,0.18637]
[1643815860785,7.47,2680.7,2680.4,0.00501159]
[1643815861597,7.77,2680.7,2680.4,0.00501159]
[1643815861783,7.77,2680.7,2679.3,0.1865]
[1643815861784,0.1865,2680.6,2679.3,0.1865]
[1643815862033,0.1865,2680.6,2680.4,0.00501159]
[1643815862234,3.52173132,2680.5,2680.4,0.00501159]
[1643815862434,4.43680433,2680.5,2680.4,0.00501159]
[1643815862635,6.1365,2680.5,2680.4,1.159e-05]
[1643815862836,9.69951612,2680.5,2680.4,1.159e-05]
[1643815863034,10.69951612,2680.5,2678.8,2.7458]
[1643815863240,10.69951612,2680.5,2678.8,2.2542]
[1643815863241,1.0,2679.9,2678.8,2.2542]
[1643815863436,0.93335,2679.6,2678.8,2.2542]
[1643815863635,0.1597555,2679.1,2678.8,3.14443254]
[1643815863834,0.1597555,2679.1,2678.2,0.01246663]
[1643815863835,0.17906702,2679.1,2678.2,0.01246663]
[1643815864236,0.1597555,2679.1,2678.2,0.01246663]
[1643815864434,0.01533969,2679.1,2678.2,0.01246663]
[1643815864635,0.20717295,2679.4,2678.2,0.01246663]
[1643815864934,0.20717295,2679.4,2678.1,0.1865]
[1643815864935,0.82957524,2679.0,2678.1,0.1865]
[1643815865138,1.17100231,2679.0,2678.1,0.1865]
[1643815865337,0.19864126,2678.7,2678.2,0.15930316]
[1643815865535,0.01890193,2678.7,2678.2,0.15930316]
[1643815865798,0.033275,2678.8,2678.4,0.00500282]
[1643815865799,0.93339,2678.8,2678.4,0.00500282]
[1643815865993,1.23339,2678.8,2678.4,0.00500282]
[1643815866196,1.47001971,2678.8,2678.4,0.00500282]
[1643815866394,1.47019685,2678.8,2678.4,0.00500282]
[1643815866594,2.31776524,2678.8,2678.0,2.25516]
[1643815866795,0.93361,2678.7,2678.0,2.25516]
[1643815866996,0.01557485,2678.5,2678.1,0.18370213]
[1643815867193,0.35150168,2678.6,2678.1,0.18370213]
[1643815867194,0.65150168,2678.6,2678.1,0.18370213]
[1643815867396,0.0917,2678.6,2678.1,0.18370213]
[1643815867596,0.13819997,2679.2,2678.1,0.19604193]
[1643815867597,0.1865,2679.1,2678.1,0.19604193]
[1643815867796,0.20260828,2679.6,2679.4,0.70134205]
[1643815867997,0.1865,2680.0,2679.4,0.70134205]
[1643815868197,0.03616739,2680.1,2678.9,0.1865]
[1643815868402,0.18564014,2680.0,2679.6,0.21354449]
[1643815868595,0.1865,2680.5,2678.9,0.1865]
[1643815868596,0.03349929,2680.1,2678.9,0.1865]
[1643815868798,0.1865,2680.0,2679.1,0.9328883]
[1643815868997,0.00510436,2680.6,2679.1,0.9328883]
[1643815868998,0.1865,2680.5,2679.2,0.1865]
[1643815869198,1.06939,2680.5,2679.2,0.1865]
[1643815869435,3.44176233,2680.4,2679.4,0.00500104]
[1643815869634,2.78710491,2679.5,2679.4,0.00500104]
[1643815869837,1.86645,2679.9,2679.4,0.00500104]
[1643815870242,0.9332,2679.7,2679.2,0.1865]
[1643815870441,7.48616951,2680.7,2679.2,0.1865]
[1643815870442,0.1865,2680.5,2679.5,0.00412562]
[1643815870638,0.19134367,2680.6,2679.5,0.00412562]
[1643815870839,0.16626662,2679.9,2679.5,0.00412562]
[1643815871041,2.03235662,2679.9,2679.5,0.18571038]
[1643815871338,1.86609,2679.9,2679.5,0.83400696]
[1643815871542,0.1865,2680.3,2679.5,0.82988134]
[1643815871741,1.1071,2680.2,2679.6,0.00412554]
[1643815872337,0.16726123,2680.1,2679.6,0.18375919]
[1643815872637,1.10018123,2680.1,2679.6,0.17963365]
[1643815872837,1.10018123,2680.1,2679.7,0.00412531]
[1643815873905,1.10018123,2680.1,2679.5,0.82988134]
[1643815874205,1.10018123,2680.1,2679.8,0.00407211]
[1643815874405,0.93285,2680.2,2679.8,0.00407211]
[1643815874605,7.47,2680.4,2679.8,0.00407211]
[1643815874805,0.00482808,2680.6,2679.9,0.1865]
[1643815875007,0.00482808,2680.6,2679.9,0.37287]
[1643815875304,0.00482835,2680.6,2680.0,0.43807181]
[1643815875505,0.00482835,2680.6,2680.1,0.86261328]
[1643815876502,0.00482835,2680.6,2679.8,1.0]
[1643815876503,0.00482868,2680.6,2680.2,0.00407143]
[1643815876940,1.58077006,2680.5,2680.2,0.00407143]
[1643815877146,2.51364006,2680.5,2680.2,0.00407143]
[1643815877341,1.76727006,2680.4,2680.2,0.00407143]
[1643815877540,0.15753437,2679.4,2679.3,0.1865]
[1643815877941,7.47,2680.3,2679.2,0.01633952]
[1643815878141,7.47,2680.3,2679.3,0.1865]
[1643815878546,7.47,2680.3,2679.2,0.01633952]
[1643815878547,0.93298,2679.9,2679.2,0.01633952]
[1643815878744,0.96469982,2679.8,2678.7,0.1865]
[1643815878945,0.96469982,2679.8,2678.8,0.73689082]
[1643815878946,0.20814026,2679.0,2678.8,0.73689082]
[1643815879144,0.01204011,2679.6,2678.2,0.1866]
[1643815879342,0.1865,2679.5,2678.2,0.1866]
[1643815879543,0.3,2679.7,2678.8,2.2542]
[1643815879544,2.79972,2679.3,2678.8,2.2542]
[1643815879944,0.93324,2679.0,2678.8,2.2542]
[1643815880244,5.35943346,2678.8,2678.7,2.2542]
[1643815880442,5.35943346,2678.8,2678.5,0.01634389]
[1643815880693,0.1865,2678.7,2678.5,0.01634389]
[1643815880890,4.50222887,2678.8,2678.5,0.01634389]
[1643815880891,2.23220316,2678.8,2678.5,0.01634389]
[1643815881090,0.17872316,2678.8,2678.1,0.1865]
[1643815881289,0.17872316,2678.8,2678.4,0.149187]
[1643815881501,10.28121815,2679.6,2678.5,0.00413443]
[1643815881502,0.1865,2679.4,2678.5,0.00413443]
[1643815881688,5.18121815,2679.6,2678.5,0.00413443]
[1643815881689,0.93385176,2679.5,2678.7,0.68326809]
[1643815881889,1.86627,2679.4,2678.6,0.1865]
[1643815882088,1.86627,2679.4,2678.5,0.00413443]
[1643815882089,0.93315,2679.4,2678.5,0.00413443]
[1643815882289,0.1865,2679.3,2678.5,0.00413443]
[1643815882488,0.1865,2679.3,2678.2,0.1865]
[1643815882489,0.18568387,2678.9,2678.2,0.1865]
[1643815882689,1.86669,2679.3,2678.9,0.00413381]
[1643815883088,0.93327,2679.2,2678.9,0.00413381]
[1643815883490,1.86665,2679.1,2678.5,0.1865]
[1643815883688,1.86665,2679.1,2678.2,1.1865]
[1643815883689,1.86676,2679.0,2678.2,1.1865]
[1643815883891,1.86676,2679.0,2678.9,0.00413374]
[1643815884546,6.76888528,2679.0,2678.9,0.00413374]
[1643815884745,6.76888528,2679.0,2678.0,0.1865]
[1643815884947,1.0,2678.9,2678.0,0.1865]
[1643815885152,1.0,2678.7,2678.4,1.394e-05]
[1643815885350,0.93374,2678.4,2677.8,0.149204]
[1643815885548,4.41224437,2677.9,2677.0,0.19474428]
[1643815885747,4.41224437,2677.9,2676.7,0.9971]
[1643815885748,1.14020671,2677.8,2676.7,0.9971]
[1643815885949,0.17696586,2677.5,2677.2,0.75021546]
[1643815886149,0.17696586,2677.5,2676.7,0.9971]
[1643815886346,1.11078586,2677.5,2677.2,2.5]
[1643815887248,2.04461586,2677.5,2677.2,2.5]
[1643815888289,2.04461586,2677.5,2676.5,0.1867]
[1643815888484,2.04461586,2677.5,2676.4,1.282441]
[1643815888485,2.05473,2677.4,2676.4,1.282441]
[1643815888685,2.05473,2677.4,2677.2,0.0049897]
[1643815888887,2.07006138,2677.4,2677.2,0.0049897]
[1643815889087,2.05473,2677.4,2677.2,0.0049897]
[1643815889487,2.05473,2677.4,2676.8,0.95480683]
[1643815889689,1.86803,2677.4,2676.6,1.1867]
[1643815889887,1.86803,2677.4,2677.2,0.00386709]
[1643815890691,1.86803,2677.4,2676.7,0.78033197]
[1643815890890,1.87104769,2677.4,2676.7,0.78033197]
[1643815891094,1.87104769,2677.4,2677.2,0.00386709]
[1643815891701,7.51805,2677.3,2676.8,0.01547066]
[1643815891944,7.51805,2677.3,2676.4,1.0836263]
[1643815891945,0.15859131,2677.1,2676.4,1.0836263]
[1643815892145,1.93424,2676.9,2676.4,1.0836263]
[1643815892343,0.434,2676.8,2676.4,1.0836263]
[1643815892541,0.434,2676.8,2675.3,1.18669999]
[1643815892542,5.65,2676.6,2675.3,0.1867]
[1643815892741,5.65,2676.6,2675.2,0.1867]
[1643815892742,2.20028064,2676.5,2675.2,0.1867]
[1643815892943,1.36854,2676.4,2675.8,0.0001]
[1643815893141,0.03784684,2676.0,2675.3,0.149342]
[1643815893339,0.03784684,2676.0,2675.0,0.31354664]
[1643815893340,0.1867,2675.9,2675.0,0.31354664]
[1643815893539,0.1867,2675.9,2675.0,1.31354663]
[1643815893739,0.1867,2676.0,2675.0,1.31354663]
[1643815894143,0.93448,2675.9,2675.4,0.95593748]
[1643815894340,0.1867,2676.0,2675.6,0.99999999]
[1643815894543,0.1867,2676.5,2675.6,0.99999999]
[1643815894740,0.1867,2676.5,2675.4,0.0049738]
[1643815895242,0.93436,2676.3,2676.1,0.99999999]
[1643815895446,0.1867,2676.5,2676.1,0.99999999]
[1643815895687,0.17141911,2676.4,2676.0,0.99999999]
[1643815896188,0.17141911,2676.4,2675.8,0.00497296]
[1643815896189,1.10572911,2676.4,2675.8,0.00497296]
[1643815896385,0.1867,2676.3,2675.8,0.00497296]
[1643815896686,1.13780023,2676.4,2675.1,0.32489997]
[1643815896687,1.10572911,2676.4,2675.1,1.32489996]
[1643815896886,0.1867,2676.3,2675.2,0.18637]
[1643815897097,9.75028,2677.8,2676.2,1.81114246]
[1643815897098,0.1867,2676.5,2676.2,1.81114246]
[1643815897288,0.1867,2677.1,2676.4,0.99999999]
[1643815897885,0.2219633,2676.5,2676.4,0.99999999]
[1643815898291,0.2219633,2676.5,2676.2,0.01988889]
[1643815899288,0.2219633,2676.5,2675.6,0.1867]
[1643815899540,0.2219633,2676.5,2676.2,0.00497222]
[1643815899541,3.46361687,2676.4,2676.2,0.00497222]
[1643815899750,0.90616532,2676.2,2675.8,0.01989186]
[1643815899942,0.6207,2676.1,2675.3,0.1867]
[1643815900342,0.1867,2676.1,2675.3,0.1867]
[1643815900540,0.9346,2675.9,2675.8,0.99999999]
[1643815900746,0.15474053,2676.2,2675.8,0.99999999]
[1643815900941,2.84181503,2676.7,2675.3,1.98035359]
[1643815900942,0.91744517,2676.3,2675.3,1.98035359]
[1643815901140,0.91744517,2676.3,2675.4,0.00096]
[1643815901345,0.18194712,2675.9,2675.4,1.16139691]
[1643815901545,0.18194712,2675.9,2675.4,1.00095999]
[1643815901843,0.00364053,2676.0,2675.7,0.99999999]
[1643815902144,0.00364053,2676.0,2675.5,0.03196]
[1643815902344,0.00364053,2676.0,2675.9,0.99999999]
[1643815902542,0.00364053,2676.0,2675.5,0.03292]
[1643815902744,0.16675239,2675.8,2675.5,0.00096]
[1643815903041,0.16675239,2675.8,2675.7,0.00491108]
[1643815903698,0.00511363,2676.1,2675.7,1.00491107]
[1643815904097,0.1867,2676.5,2675.7,0.99999999]
[1643815904298,0.00511364,2675.9,2675.6,0.00491117]
[1643815905002,0.00511364,2675.9,2675.7,0.99999999]
[1643815905200,1.12106,2676.5,2675.7,0.99999999]
[1643815905400,0.00511364,2675.9,2675.8,0.00096]
[1643815905701,0.00511364,2675.9,2675.8,1.21743878]
[1643815905901,0.00511364,2675.9,2675.8,1.29999999]
[1643815906100,0.00511364,2675.9,2675.8,2.8]
[1643815906503,0.22297911,2676.4,2675.5,0.00096]
[1643815906802,0.00511368,2676.0,2675.7,0.00491108]
[1643815907043,5.07211088,2675.8,2675.7,0.00491108]
[1643815907242,5.07211088,2675.8,2675.0,0.01964922]
[1643815907243,5.79630413,2675.7,2675.0,0.01964922]
[1643815907442,6.79630413,2675.7,2675.0,0.01964922]
[1643815907647,6.79630413,2675.7,2674.7,0.811825]
[1643815907648,5.79630413,2675.7,2674.7,0.811825]
[1643815907842,5.79630413,2675.7,2674.8,0.00096]
[1643815908052,5.7916,2675.7,2674.8,0.00096]
[1643815908242,1.0,2675.6,2674.8,0.00096]
[1643815908543,2.08739361,2675.5,2674.6,0.00096]
[1643815909042,2.08739361,2675.5,2674.5,0.99999999]
[1643815909043,0.1869,2675.5,2674.5,0.99999999]
[1643815909242,0.18886359,2674.9,2674.5,0.18617899]
[1643815909443,0.1869,2675.6,2674.8,4.70394693]
[1643815909642,0.1869,2675.7,2675.2,0.99999999]
[1643815909841,0.1867,2675.8,2674.9,0.99999999]
[1643815910244,0.93469,2675.7,2675.0,0.00096]
[1643815910885,0.17876602,2675.2,2675.0,0.00096]
[1643815911085,0.93469,2675.7,2674.9,0.99999999]
[1643815911485,0.93469,2675.7,2674.8,0.3]
[1643815911787,0.93469,2675.7,2675.0,0.00483868]
[1643815911788,2.01018,2675.7,2675.0,0.00483868]
[1643815911985,0.81675203,2675.3,2675.0,0.00483868]
[1643815912187,0.37701028,2675.2,2675.0,0.00483868]
[1643815912384,0.37701028,2675.2,2674.7,0.00096]
[1643815912791,0.93495,2675.1,2675.0,0.00483859]
[1643815912985,5.07185,2675.1,2675.0,0.00483859]
[1643815913585,6.10204713,2675.1,2675.0,0.00483859]
[1643815913785,6.10204713,2675.1,2674.2,0.00096]
[1643815913786,0.1680222,2674.4,2674.2,0.00096]
[1643815913986,0.93492,2674.8,2674.2,0.00096]
[1643815914187,0.93492,2674.8,2674.2,0.99999999]
[1643815914734,0.93492,2674.8,2674.5,0.99999999]
[1643815914935,0.93492,2674.8,2674.1,0.00096]
[1643815915135,0.93492,2674.8,2674.5,0.99999999]
[1643815915344,1.86982,2675.4,2674.7,0.99999999]
[1643815915345,0.1869,2675.3,2674.7,0.99999999]
[1643815915538,0.1869,2675.5,2674.8,1.00095999]
[1643815915738,1.86933,2675.7,2674.8,0.00096]
[1643815915937,1.86933,2675.7,2674.8,1.00095999]
[1643815916138,1.86933,2675.7,2674.8,0.68796861]
[1643815916340,0.93464,2675.7,2675.1,1.00460963]
[1643815916538,0.93464,2675.7,2675.3,0.99999999]
[1643815916739,0.00460832,2675.9,2675.3,0.3]
[1643815916939,0.00460832,2675.9,2675.5,0.99999999]
[1643815917241,2.05564,2676.3,2674.9,0.00096]
[1643815917242,0.20595421,2675.3,2674.9,0.00096]
[1643815917641,0.20595421,2675.3,2674.9,0.01844221]
[1643815917845,0.1408,2675.2,2674.9,0.01844221]
[1643815918040,0.144,2675.2,2674.9,0.01844221]
[1643815918293,2.07571421,2675.3,2674.9,0.01844221]
[1643815918493,2.07571421,2675.3,2674.4,0.81666641]
[1643815918695,1.86981,2675.0,2674.4,0.81666641]
[1643815918896,0.1869,2675.5,2674.5,0.18786]
[1643815919094,0.1869,2675.8,2674.9,0.00462595]
[1643815919694,0.18111512,2675.0,2674.7,0.1867]
[1643815919894,0.93455,2675.8,2675.1,0.68484632]
[1643815920099,0.00317936,2675.9,2675.2,0.1867]
[1643815920598,0.00317936,2675.9,2675.2,0.37307]
[1643815920795,0.1867,2676.4,2675.6,0.87764883]
[1643815920997,2.0,2676.8,2675.3,0.00096]
[1643815920998,0.17506366,2675.8,2675.3,0.00096]
[1643815921197,0.17506366,2675.8,2675.4,0.1867]
[1643815921597,0.17506366,2675.8,2674.9,0.18766]
[1643815922041,0.16420411,2675.3,2674.9,0.18766]
[1643815922239,0.16420411,2675.3,2674.9,0.1867]
[1643815922439,1.79598635,2675.8,2674.8,1.08810582]
[1643815922440,0.81994,2675.8,2674.8,1.27500582]
[1643815922642,0.1868,2676.3,2675.1,0.01288242]
[1643815922846,0.1868,2676.3,2675.2,1.1209417]
[1643815923042,2.1867,2676.6,2675.2,1.1209417]
[1643815923246,2.1867,2676.6,2675.3,0.3]
[1643815923444,0.93429,2676.5,2675.7,0.79077207]
[1643815923642,0.93429,2676.5,2675.4,0.1867]
[1643815924042,0.93429,2676.5,2675.5,0.00096]
[1643815924243,0.1867,2676.4,2675.5,0.00096]
[1643815924443,1.86892,2676.3,2675.5,0.00096]
[1643815924642,1.0236422,2676.2,2675.2,0.90787211]
[1643815924842,1.0236422,2676.2,2675.0,0.00096]
[1643815924843,1.0236422,2676.2,2675.1,0.1867]
[1643815925043,2.26971894,2676.1,2675.1,0.1867]
[1643815925344,0.1867,2676.1,2675.2,0.00096]
[1643815925542,0.18811719,2676.2,2675.2,0.00096]
[1643815925990,0.00364387,2676.0,2675.2,0.00096]
[1643815926391,0.00364387,2676.0,2675.6,0.85346964]
[1643815926592,0.00364387,2676.0,2675.2,0.00096]
[1643815926994,0.18811719,2676.2,2675.2,0.00096]
[1643815927292,0.93438,2676.4,2675.5,0.00486599]
[1643815927293,0.18891727,2675.7,2675.5,0.00486599]
[1643815927492,0.00510072,2676.0,2675.5,0.00486599]
[1643815928196,1.67267073,2676.1,2675.2,0.00096]
[1643815928497,1.12319692,2675.9,2675.6,0.00486572]
[1643815928893,0.1867,2675.8,2675.6,0.00486572]
[1643815929295,0.1867,2675.8,2675.5,0.18901183]
[1643815929544,0.1867,2676.3,2675.2,0.1867]
[1643815929745,0.00510085,2676.0,2675.6,0.00486581]
[1643815930544,0.18392157,2675.9,2675.1,0.18766]
[1643815930746,0.1867,2676.3,2675.1,0.18766]
[1643815930747,0.21231398,2675.4,2675.1,0.20712688]
[1643815930951,0.21231398,2675.4,2675.2,0.00096]
[1643815931549,0.21231398,2675.4,2675.1,0.20616688]
[1643815931550,2.34622467,2675.3,2675.1,0.20616688]
[1643815931752,2.34622467,2675.3,2674.4,0.00096]
[1643815931753,5.6,2675.2,2674.4,0.00096]
[1643815931951,5.6,2675.2,2673.4,1.0]
[1643815931952,0.0124738,2674.6,2673.4,1.0]
[1643815932150,0.0124738,2674.6,2673.4,0.4726601]
[1643815932151,35.65925648,2674.5,2673.4,0.4726601]
[1643815932350,4.18689999,2674.4,2673.4,0.4726601]
[1643815932548,0.00375261,2674.1,2673.4,0.4726601]
[1643815932746,0.621,2674.0,2673.4,0.4726601]
[1643815932948,1.8707,2673.8,2673.4,0.4726601]
[1643815933191,2.0577,2673.8,2673.4,0.4726601]
[1643815933589,5.6,2673.7,2673.2,0.26456961]
[1643815933798,4.8,2673.5,2672.1,0.197]
[1643815933993,0.21505359,2672.2,2672.1,0.187]
[1643815934190,0.434,2673.0,2671.8,0.187]
[1643815934389,0.621,2673.0,2671.9,0.80826202]
[1643815934589,0.621,2673.0,2672.0,0.187]
[1643815934994,0.621,2673.0,2672.0,0.197]
[1643815935189,0.434,2673.0,2671.7,0.187]
[1643815935393,2.0,2672.9,2671.7,0.187]
[1643815935592,0.01217087,2672.5,2672.4,0.00481074]
[1643815935791,0.00927439,2672.4,2671.7,0.16105659]
[1643815935991,0.187,2672.3,2671.7,0.16105659]
[1643815936199,0.17557752,2671.9,2671.7,0.16105659]
[1643815936395,0.17557752,2671.9,2671.1,0.187]
[1643815936594,0.17557752,2671.9,2671.0,0.187]
[1643815936795,0.187,2672.3,2671.0,0.187]
[1643815937045,0.19627439,2672.4,2671.0,0.18637]
[1643815937245,0.19627439,2672.4,2671.1,0.187]
[1643815937445,0.19627439,2672.4,2671.5,0.91844588]
[1643815937646,0.16467439,2672.7,2671.5,0.91844588]
[1643815937946,0.01285839,2672.9,2671.6,0.187]
[1643815937947,0.187,2672.8,2671.6,0.187]
[1643815938147,0.187,2672.8,2671.6,0.197]
[1643815938345,37.35380524,2672.8,2671.6,0.197]
[1643815938547,0.0121688,2672.2,2671.1,0.187]
[1643815938746,0.621,2672.1,2670.5,0.27639994]
[1643815938950,0.16143839,2671.5,2671.0,0.20930517]
[1643815939148,0.621,2672.1,2671.0,0.20930517]
[1643815939354,0.19067379,2672.1,2671.0,0.20930517]
[1643815940149,0.187,2672.1,2671.0,0.20930517]
[1643815940545,0.19185186,2672.1,2671.4,0.00474026]
[1643815940814,0.00485186,2672.1,2671.4,0.00474026]
[1643815941012,0.187,2672.0,2671.4,0.00474026]
[1643815941211,0.19245094,2671.7,2671.4,0.00474026]
[1643815941414,0.18325094,2671.7,2671.4,0.00474026]
[1643815941615,0.187,2672.0,2671.6,0.00474]
[1643815942613,0.17701914,2671.9,2671.5,0.1717422]
[1643815942813,1.12782218,2672.1,2671.7,0.00473982]
[1643815943015,2.11221554,2672.1,2671.7,0.00473982]
[1643815943213,1.05888404,2672.1,2671.7,0.00473982]
[1643815943417,0.00485218,2672.1,2671.7,0.00473982]
[1643815944015,0.187,2672.7,2671.6,0.17329042]
[1643815944227,0.00485231,2672.1,2670.6,0.97833466]
[1643815944445,0.01200328,2671.6,2671.2,1.94373157]
[1643815944643,0.01200328,2671.6,2670.9,0.04092649]
[1643815945043,0.01200328,2671.6,2670.7,0.04206334]
[1643815945242,0.01200328,2671.6,2670.9,0.20709597]
[1643815945243,0.19928348,2671.3,2670.9,0.20709597]
[1643815945444,0.621,2671.5,2670.9,0.20709597]
[1643815945643,0.621,2671.5,2671.0,0.04035807]
[1643815946044,0.187,2671.6,2671.0,0.04035807]
[1643815946248,0.187,2672.1,2671.0,0.04035807]
[1643815946444,0.20556297,2671.8,2671.0,0.04035807]
[1643815946750,0.98391368,2671.8,2670.8,0.04149492]
[1643815946946,1.1610387,2672.0,2670.8,0.04149492]
[1643815947145,1.1610387,2672.0,2670.8,0.00096]
[1643815947146,5.6,2671.9,2670.8,0.00096]
[1643815947354,0.99999999,2670.9,2669.4,0.01237338]
[1643815947546,0.99999999,2670.9,2668.7,6.85157005]
[1643815947547,0.99999999,2670.3,2669.1,0.01202508]
[1643815947745,0.99999999,2670.3,2668.7,0.03789601]
[1643815947746,0.01274831,2669.6,2668.7,0.03789601]
[1643815947948,0.01274831,2669.6,2668.8,0.2125148]
[1643815948200,1.87373,2669.6,2668.9,3.05]
[1643815948492,1.87373,2669.6,2668.7,0.03789601]
[1643815948493,0.18725,2669.5,2668.1,0.8]
[1643815948696,17.56778186,2669.4,2667.8,0.88553]
[1643815948893,2.72821576,2668.9,2668.7,0.01874299]
[1643815949092,2.72821576,2668.9,2667.7,0.53855028]
[1643815949093,2.8,2668.7,2667.7,0.53855028]
[1643815949300,2.50997581,2668.6,2667.7,0.53855028]
[1643815949491,0.20361606,2668.5,2667.8,0.10945625]
[1643815949695,0.1872,2668.4,2667.8,0.10945625]
[1643815949893,0.00853133,2668.4,2667.8,0.10945625]
[1643815950095,0.00855433,2668.9,2668.0,0.01219443]
[1643815950395,0.00855433,2668.9,2667.8,0.10945625]
[1643815950396,0.20011645,2668.8,2668.2,0.70822959]
[1643815950595,3.22244579,2669.2,2668.2,0.70822959]
[1643815950596,0.1872,2668.9,2668.2,0.70822959]
[1643815950798,0.1889661,2669.2,2667.7,0.55092536]
[1643815950799,0.38465269,2669.2,2667.8,0.02]
[1643815950997,0.38465269,2669.2,2667.7,0.53855028]
[1643815950998,1.55832,2669.1,2667.7,0.53855028]
[1643815951201,0.00909694,2668.9,2667.7,0.53855028]
[1643815951600,0.00909694,2668.9,2668.3,0.21648956]
[1643815951806,0.0097156,2668.9,2668.1,0.71031944]
[1643815952055,0.19712981,2669.1,2668.1,0.71031944]
[1643815952350,0.27639994,2669.6,2668.2,0.20001008]
[1643815952551,0.27639994,2669.6,2668.2,0.1872]
[1643815952750,0.27639994,2669.6,2667.9,0.1872]
[1643815952751,0.01238058,2669.0,2667.9,0.1872]
[1643815952946,0.44316644,2668.9,2668.5,0.15898276]
[1643815953144,1.75631063,2669.3,2667.8,0.1872]
[1643815953347,1.75631063,2669.3,2665.3,2.37395]
[1643815953348,5.61224895,2669.1,2665.3,2.37395]
[1643815953550,5.61224895,2669.1,2664.9,1.06622441]
[1643815953551,0.99999999,2667.0,2665.0,0.0123258]
[1643815953747,0.99999999,2667.0,2664.6,0.05051309]
[1643815953748,0.99999999,2666.4,2664.7,0.19563981]
[1643815953951,0.99999999,2665.8,2663.5,1.0966973]
[1643815954147,0.15785322,2665.4,2664.5,0.18780859]
[1643815954357,0.75944997,2665.3,2663.6,0.04188648]
[1643815954549,13.75909694,2665.2,2663.9,0.83754397]
[1643815954747,0.01257802,2664.4,2663.2,0.5]
[1643815954948,13.91008694,2664.3,2663.6,0.00096]
[1643815955148,13.91008694,2664.3,2663.3,0.00096]
[1643815955149,0.012208,2663.7,2663.3,0.00096]
[1643815955352,3.2,2663.5,2663.3,0.19996778]
[1643815955710,0.434,2663.4,2663.1,0.79319439]
[1643815956299,4.96374,2664.2,2662.9,74.30916778]
[1643815956300,5.6,2663.5,2662.9,70.44352393]
[1643815956502,7.27,2663.2,2662.9,69.34092408]
[1643815956701,0.18725,2663.4,2662.9,69.34092408]
[1643815956904,0.1877,2663.3,2662.9,69.34092408]
[1643815957099,0.1877,2663.3,2662.9,63.56332408]